[Event "SS Manhem Chess Week 2019 Goteborg Open"]
[Site "Molnlycke kulturhus, Biblioteksgatan 2, Molnlycke, Sweden"]
[Date "2019.08.18"]
[Round "7.9"]
[White "Castrillon Gomez, Melissa"]
[Black "Troedsson, Anton"]
[Result "1-0"]
[TimeControl "15 minutes + 5 seconds per move from move one (Round 1 - 4) / 90 minutes + 30 seconds per move from move one (Round 5 - 8)"]
[WhiteTitle "WIM"]
[WhiteFideId "4402413"]
[BlackFideId "1746006"]
[WhiteElo "2227"]
[BlackElo "2045"]

1. d4 {[%clk 01:29:07]} {[%emt 00:01:53]} d5 {[%clk 01:29:35]} {[%emt
00:01:25]} 2. Nf3 {[%clk 01:29:22]} {[%emt 00:00:15]} Nf6 {[%clk 01:29:58]}
{[%emt 00:00:06]} 3. c4 {[%clk 01:29:48]} {[%emt 00:00:04]} c6 {[%clk
01:30:14]} {[%emt 00:00:14]} 4. Nc3 {[%clk 01:25:13]} {[%emt 00:05:06]} a6
{[%clk 01:25:46]} {[%emt 00:04:57]} 5. e3 {[%clk 01:20:44]} {[%emt 00:04:59]}
g6 {[%clk 01:25:53]} {[%emt 00:00:23]} 6. Bd3 {[%clk 01:20:15]} {[%emt
00:00:59]} Bg7 {[%clk 01:26:11]} {[%emt 00:00:12]} 7. h3 {[%clk 01:19:18]}
{[%emt 00:01:28]} O-O {[%clk 01:26:28]} {[%emt 00:00:13]} 8. e4 {[%clk
01:18:25]} {[%emt 00:01:24]} dxe4 {[%clk 01:25:00]} {[%emt 00:01:58]} 9. Nxe4
{[%clk 01:18:47]} {[%emt 00:00:08]} Nxe4 {[%clk 01:25:19]} {[%emt 00:00:11]} 10.
Bxe4 {[%clk 01:19:11]} {[%emt 00:00:06]} Bf5 {[%clk 01:25:39]} {[%emt
00:00:10]} 11. Bxf5 {[%clk 01:19:12]} {[%emt 00:00:29]} Qa5+ {[%clk 01:26:03]}
{[%emt 00:00:06]} 12. Bd2 {[%clk 01:18:09]} {[%emt 00:01:33]} Qxf5 {[%clk
01:23:02]} {[%emt 00:03:30]} 13. O-O {[%clk 01:18:19]} {[%emt 00:00:20]} c5
{[%clk 01:16:06]} {[%emt 00:07:27]} 14. dxc5 {[%clk 01:04:47]} {[%emt
00:14:02]} Qxc5 {[%clk 01:12:41]} {[%emt 00:03:55]} 15. Qb3 {[%clk 00:57:17]}
{[%emt 00:08:01]} Nc6 {[%clk 01:09:05]} {[%emt 00:04:06]} 16. a3 {[%clk
00:49:00]} {[%emt 00:08:47]} Nd4 {[%clk 00:38:44]} {[%emt 00:30:51]} 17. Nxd4
{[%clk 00:47:03]} {[%emt 00:02:27]} Bxd4 {[%clk 00:39:10]} {[%emt 00:00:04]} 18.
Qa2 {[%clk 00:37:39]} {[%emt 00:09:54]} b5 {[%clk 00:36:06]} {[%emt 00:03:33]}
19. Rac1 {[%clk 00:35:45]} {[%emt 00:02:24]} bxc4 {[%clk 00:36:28]} {[%emt
00:00:09]} 20. Rxc4 {[%clk 00:31:38]} {[%emt 00:04:37]} Qd5 {[%clk 00:36:48]}
{[%emt 00:00:09]} 21. Bh6 {[%clk 00:31:48]} {[%emt 00:00:20]} Rfd8 {[%clk
00:32:34]} {[%emt 00:04:43]} 22. b4 {[%clk 00:25:22]} {[%emt 00:06:56]} a5
{[%clk 00:30:36]} {[%emt 00:02:29]} 23. Qe2 {[%clk 00:20:55]} {[%emt 00:04:57]}
axb4 {[%clk 00:29:54]} {[%emt 00:01:12]} 24. axb4 {[%clk 00:21:17]} {[%emt
00:00:08]} Bg7 {[%clk 00:29:08]} {[%emt 00:01:15]} 25. Bxg7 {[%clk 00:19:18]}
{[%emt 00:02:29]} Kxg7 {[%clk 00:29:32]} {[%emt 00:00:05]} 26. Rfc1 {[%clk
00:19:03]} {[%emt 00:00:46]} Qd6 {[%clk 00:28:44]} {[%emt 00:01:17]} 27. b5
{[%clk 00:18:38]} {[%emt 00:00:56]} Rab8 {[%clk 00:27:57]} {[%emt 00:01:17]} 28.
Rc6 {[%clk 00:16:37]} {[%emt 00:02:31]} Qb4 {[%clk 00:28:06]} {[%emt 00:00:20]}
29. R6c5 {[%clk 00:16:55]} {[%emt 00:00:12]} Rb7 {[%clk 00:26:10]} {[%emt
00:02:26]} 30. Qe5+ {[%clk 00:17:07]} {[%emt 00:00:18]} f6 {[%clk 00:26:20]}
{[%emt 00:00:19]} 31. Qe3 {[%clk 00:13:27]} {[%emt 00:04:12]} Rdd7 {[%clk
00:24:59]} {[%emt 00:01:51]} 32. Qe6 {[%clk 00:10:59]} {[%emt 00:02:58]} Rd6
{[%clk 00:24:57]} {[%emt 00:00:32]} 33. Qe2 {[%clk 00:06:44]} {[%emt 00:04:46]}
Rd2 {[%clk 00:24:58]} {[%emt 00:00:28]} 34. Qe3 {[%clk 00:05:12]} {[%emt
00:02:02]} Rdd7 {[%clk 00:24:37]} {[%emt 00:00:51]} 35. Qe2 {[%clk 00:03:34]}
{[%emt 00:02:09]} Rd6 {[%clk 00:23:58]} {[%emt 00:01:08]} 36. Rc7 {[%clk
00:02:23]} {[%emt 00:01:43]} Rdb6 {[%clk 00:23:23]} {[%emt 00:01:04]} 37. R1c4
{[%clk 00:02:09]} {[%emt 00:00:44]} Qd6 {[%clk 00:22:55]} {[%emt 00:00:58]} 38.
Rxb7 {[%clk 00:00:58]} {[%emt 00:01:42]} Rxb7 {[%clk 00:23:17]} {[%emt
00:00:07]} 39. Qb2 {[%clk 00:00:42]} {[%emt 00:00:47]} Qe5 {[%clk 00:22:11]}
{[%emt 00:01:36]} 40. Qxe5 {[%clk 00:00:53]} {[%emt 00:00:18]} fxe5 {[%clk
00:22:39]} {[%emt 00:00:02]} 41. Rb4 {[%clk 00:01:08]} {[%emt 00:00:16]} Rb6
{[%clk 00:21:42]} {[%emt 00:01:27]} 42. Kf1 {[%clk 00:01:23]} {[%emt 00:00:15]}
Kf6 {[%clk 00:22:02]} {[%emt 00:00:10]} 43. Ke2 {[%clk 00:01:50]} {[%emt
00:00:03]} Ke6 {[%clk 00:22:24]} {[%emt 00:00:07]} 44. Kd3 {[%clk 00:02:04]}
{[%emt 00:00:17]} Kd5 {[%clk 00:22:52]} {[%emt 00:00:01]} 45. Rb2 {[%clk
00:02:20]} {[%emt 00:00:15]} g5 {[%clk 00:22:36]} {[%emt 00:00:45]} 46. Ke3
{[%clk 00:02:37]} {[%emt 00:00:13]} h6 {[%clk 00:22:16]} {[%emt 00:00:49]} 47.
Rb1 {[%clk 00:01:27]} {[%emt 00:01:41]} e4 {[%clk 00:22:31]} {[%emt 00:00:15]}
48. Rb4 {[%clk 00:01:20]} {[%emt 00:00:38]} e6 {[%clk 00:21:55]} {[%emt
00:01:06]} 49. Rb2 {[%clk 00:00:51]} {[%emt 00:00:59]} Ke5 {[%clk 00:21:45]}
{[%emt 00:00:39]} 50. Rb1 {[%clk 00:01:12]} {[%emt 00:00:10]} Kd5 {[%clk
00:15:22]} {[%emt 00:06:53]} 51. Rb4 {[%clk 00:01:21]} {[%emt 00:00:21]} Kc5
{[%clk 00:09:55]} {[%emt 00:05:56]} 52. Rb2 {[%clk 00:01:36]} {[%emt 00:00:16]}
Kd5 {[%clk 00:10:18]} {[%emt 00:00:07]} 53. h4 {[%clk 00:02:02]} {[%emt
00:00:04]} Ke5 {[%clk 00:09:27]} {[%emt 00:01:21]} 54. hxg5 {[%clk 00:02:12]}
{[%emt 00:00:20]} hxg5 {[%clk 00:09:55]} 55. Rb4 {[%clk 00:02:35]} {[%emt
00:00:07]} Kd5 {[%clk 00:10:19]} {[%emt 00:00:06]} 56. Rd4+ {[%clk 00:02:31]}
{[%emt 00:00:35]} Kc5 {[%clk 00:08:20]} {[%emt 00:02:29]} 57. Rxe4 {[%clk
00:02:56]} {[%emt 00:00:05]} Kxb5 {[%clk 00:08:47]} {[%emt 00:00:02]} 58. Re5+
{[%clk 00:03:21]} {[%emt 00:00:05]} Kc4 {[%clk 00:08:16]} {[%emt 00:01:01]} 59.
Rxg5 {[%clk 00:03:49]} {[%emt 00:00:02]} Rb1 {[%clk 00:08:22]} {[%emt
00:00:24]} 60. Re5 {[%clk 00:02:55]} {[%emt 00:01:24]} Rb3+ {[%clk 00:08:01]}
{[%emt 00:00:52]} 61. Ke4 {[%clk 00:02:20]} {[%emt 00:01:04]} Rb2 {[%clk
00:08:16]} {[%emt 00:00:16]} 62. Kf3 {[%clk 00:02:43]} {[%emt 00:00:07]} Rb6
{[%clk 00:08:34]} {[%emt 00:00:12]} 63. g4 {[%clk 00:02:39]} {[%emt 00:00:34]}
Kd4 {[%clk 00:09:00]} {[%emt 00:00:04]} 64. Kf4 {[%clk 00:02:54]} {[%emt
00:00:15]} Ra6 {[%clk 00:07:26]} {[%emt 00:02:04]} 65. g5 {[%clk 00:02:36]}
{[%emt 00:00:48]} Rb6 {[%clk 00:03:06]} {[%emt 00:04:51]} 66. f3 {[%clk
00:03:02]} {[%emt 00:00:04]} Ra6 {[%clk 00:02:30]} {[%emt 00:01:06]} 67. g6
{[%clk 00:03:11]} {[%emt 00:00:20]} Ra8 {[%clk 00:02:30]} {[%emt 00:00:30]} 68.
Rxe6 {[%clk 00:03:31]} {[%emt 00:00:11]} Kd5 {[%clk 00:02:53]} {[%emt
00:00:06]} 69. Re3 {[%clk 00:03:17]} {[%emt 00:00:44]} Ra4+ {[%clk 00:01:40]}
{[%emt 00:01:43]} 70. Kg5 {[%clk 00:02:56]} {[%emt 00:00:50]} Ra1 {[%clk
00:01:50]} {[%emt 00:00:21]} 71. g7 {[%clk 00:03:06]} {[%emt 00:00:21]} Rg1
{[%clk 00:02:18]} {[%emt 00:00:02]} 72. Kf6 {[%clk 00:03:31]} {[%emt 00:00:05]}
Rg3 {[%clk 00:02:35]} {[%emt 00:00:13]} 73. Kf7 {[%clk 00:03:39]} {[%emt
00:00:21]} Kd6 {[%emt 00:00:14]} 1-0

[Event "SS Manhem Chess Week 2019 Goteborg Open"]
[Site "Molnlycke kulturhus, Biblioteksgatan 2, Molnlycke, Sweden"]
[Date "2019.08.18"]
[Round "7.10"]
[White "Malmstig, Erik"]
[Black "Sorensen, Bent"]
[Result "1-0"]
[TimeControl "15 minutes + 5 seconds per move from move one (Round 1 - 4) / 90 minutes + 30 seconds per move from move one (Round 5 - 8)"]
[WhiteTitle "FM"]
[BlackTitle "IM"]
[WhiteFideId "1702866"]
[BlackFideId "1400410"]
[WhiteElo "2335"]
[BlackElo "2042"]

1. c4 {[%clk 01:27:54]} {[%emt 00:03:05]} e6 {[%clk 01:30:37]} {[%emt
00:00:23]} 2. Nf3 {[%clk 01:27:03]} {[%emt 00:01:22]} d5 {[%clk 01:30:47]}
{[%emt 00:00:19]} 3. g3 {[%clk 01:27:10]} {[%emt 00:00:23]} Nf6 {[%clk
01:30:50]} {[%emt 00:00:27]} 4. Bg2 {[%clk 01:27:31]} {[%emt 00:00:09]} Bd6
{[%clk 01:28:29]} {[%emt 00:02:51]} 5. O-O {[%clk 01:26:58]} {[%emt 00:01:00]}
O-O {[%clk 01:28:33]} {[%emt 00:00:29]} 6. b3 {[%clk 01:26:39]} {[%emt
00:00:49]} c5 {[%clk 01:27:20]} {[%emt 00:01:43]} 7. cxd5 {[%clk 01:26:42]}
{[%emt 00:00:28]} exd5 {[%clk 01:26:34]} {[%emt 00:01:16]} 8. d4 {[%clk
01:26:55]} {[%emt 00:00:16]} b6 {[%clk 01:24:38]} {[%emt 00:02:27]} 9. Nc3
{[%clk 01:25:51]} {[%emt 00:01:34]} Be6 {[%clk 01:22:21]} {[%emt 00:02:46]} 10.
Bb2 {[%clk 01:25:45]} {[%emt 00:00:36]} Nc6 {[%clk 01:13:40]} {[%emt 00:09:11]}
11. Rc1 {[%clk 01:25:13]} {[%emt 00:01:02]} Re8 {[%clk 01:11:54]} {[%emt
00:02:17]} 12. Nb5 {[%clk 01:18:59]} {[%emt 00:06:44]} Rc8 {[%clk 01:01:20]}
{[%emt 00:11:04]} 13. e3 {[%clk 01:15:26]} {[%emt 00:04:04]} Bb8 {[%clk
00:54:51]} {[%emt 00:06:59]} 14. dxc5 {[%clk 01:09:05]} {[%emt 00:06:51]} bxc5
{[%clk 00:55:02]} {[%emt 00:00:18]} 15. Bxf6 {[%clk 01:09:23]} {[%emt
00:00:12]} Qxf6 {[%clk 00:55:00]} {[%emt 00:00:33]} 16. Rxc5 {[%clk 01:09:13]}
{[%emt 00:00:41]} Nb4 {[%clk 00:50:29]} {[%emt 00:05:00]} 17. Rxc8 {[%clk
01:08:43]} {[%emt 00:01:01]} Rxc8 {[%clk 00:50:52]} {[%emt 00:00:07]} 18. Qd2
{[%clk 01:08:27]} {[%emt 00:00:44]} a5 {[%clk 00:49:09]} {[%emt 00:02:14]} 19.
Nfd4 {[%clk 01:05:17]} {[%emt 00:03:40]} Rc5 {[%clk 00:45:59]} {[%emt
00:03:42]} 20. a3 {[%clk 00:50:11]} {[%emt 00:15:35]} Na6 {[%clk 00:45:19]}
{[%emt 00:01:10]} 21. Qxa5 {[%clk 00:50:00]} {[%emt 00:00:42]} Bd7 {[%clk
00:45:20]} {[%emt 00:00:28]} 22. a4 {[%clk 00:48:49]} {[%emt 00:01:41]} Nc7
{[%clk 00:42:49]} {[%emt 00:03:01]} 23. b4 {[%clk 00:44:16]} {[%emt 00:05:03]}
Rc4 {[%clk 00:41:43]} {[%emt 00:01:36]} 24. Na3 {[%clk 00:43:49]} {[%emt
00:00:56]} Rc3 {[%clk 00:41:37]} {[%emt 00:00:36]} 25. Nb1 {[%clk 00:44:05]}
{[%emt 00:00:13]} Rd3 {[%clk 00:40:47]} {[%emt 00:01:20]} 26. Rc1 {[%clk
00:38:08]} {[%emt 00:06:27]} Ne6 {[%clk 00:37:04]} {[%emt 00:04:13]} 27. Qa8
{[%clk 00:29:58]} {[%emt 00:08:41]} Qd8 {[%clk 00:36:51]} {[%emt 00:00:43]} 28.
Bf1 {[%clk 00:27:29]} {[%emt 00:02:59]} Nxd4 {[%clk 00:31:28]} {[%emt
00:05:53]} 29. Bxd3 {[%clk 00:26:33]} {[%emt 00:01:26]} Nf3+ {[%clk 00:31:44]}
{[%emt 00:00:14]} 30. Kg2 {[%clk 00:23:05]} {[%emt 00:03:58]} Ne5 {[%clk
00:25:33]} {[%emt 00:06:42]} 31. Bb5 {[%clk 00:19:47]} {[%emt 00:03:47]} Bg4
{[%clk 00:23:57]} {[%emt 00:02:06]} 32. Nd2 {[%clk 00:18:34]} {[%emt 00:01:43]}
h6 {[%clk 00:21:38]} {[%emt 00:02:49]} 33. h3 {[%clk 00:14:52]} {[%emt
00:04:12]} Be6 {[%clk 00:21:40]} {[%emt 00:00:28]} 34. a5 {[%clk 00:13:09]}
{[%emt 00:02:13]} Kh7 {[%clk 00:21:19]} {[%emt 00:00:51]} 35. a6 {[%clk
00:11:44]} {[%emt 00:01:56]} Qb6 {[%clk 00:21:17]} {[%emt 00:00:31]} 36. Qb7
{[%clk 00:11:47]} {[%emt 00:00:27]} Ba7 {[%clk 00:21:25]} {[%emt 00:00:21]} 37.
Qxb6 {[%clk 00:10:40]} {[%emt 00:01:38]} Bxb6 {[%clk 00:21:47]} {[%emt
00:00:08]} 38. Ra1 {[%clk 00:09:00]} {[%emt 00:02:11]} Ba7 {[%clk 00:22:11]}
{[%emt 00:00:06]} 39. f4 {[%clk 00:09:10]} {[%emt 00:00:19]} Ng6 {[%clk
00:22:30]} {[%emt 00:00:11]} 40. Bd3 {[%clk 00:09:19]} {[%emt 00:00:22]} Kg8
{[%clk 00:22:13]} {[%emt 00:00:47]} 41. f5 {[%clk 00:09:15]} {[%emt 00:00:33]}
Ne5 {[%clk 00:22:17]} {[%emt 00:00:26]} 42. fxe6 {[%clk 00:09:39]} {[%emt
00:00:07]} 1-0

[Event "SS Manhem Chess Week 2019 Goteborg Open"]
[Site "Molnlycke kulturhus, Biblioteksgatan 2, Molnlycke, Sweden"]
[Date "2019.08.18"]
[Round "7.11"]
[White "Nilsson, Joakim"]
[Black "Svensson, Leif"]
[Result "1-0"]
[TimeControl "15 minutes + 5 seconds per move from move one (Round 1 - 4) / 90 minutes + 30 seconds per move from move one (Round 5 - 8)"]
[WhiteTitle "FM"]
[WhiteFideId "1723383"]
[BlackFideId "1702459"]
[WhiteElo "2319"]
[BlackElo "2027"]

1. Nf3 {[%clk 01:30:58]} {[%emt 00:00:02]} d5 {[%clk 01:30:52]} {[%emt
00:00:08]} 2. c4 {[%clk 01:31:24]} e6 {[%clk 01:31:09]} {[%emt 00:00:17]} 3. d4
{[%clk 01:31:46]} {[%emt 00:00:08]} c6 {[%clk 01:31:31]} {[%emt 00:00:08]} 4.
g3 {[%clk 01:32:00]} {[%emt 00:00:16]} Bd6 {[%clk 01:30:47]} {[%emt 00:01:13]}
5. Bg2 {[%clk 01:32:23]} {[%emt 00:00:07]} Nd7 {[%clk 01:30:50]} {[%emt
00:00:28]} 6. O-O {[%clk 01:32:43]} {[%emt 00:00:10]} Ngf6 {[%clk 01:31:09]}
{[%emt 00:00:10]} 7. Nfd2 {[%clk 01:29:26]} {[%emt 00:03:47]} O-O {[%clk
01:30:18]} {[%emt 00:01:20]} 8. Nc3 {[%clk 01:29:10]} {[%emt 00:00:47]} Re8
{[%clk 01:29:57]} {[%emt 00:00:50]} 9. e4 dxe4 {[%clk 01:29:46]} 10. Ndxe4
{[%clk 01:29:29]} {[%emt 00:00:09]} Nxe4 {[%clk 01:29:54]} {[%emt 00:00:22]} 11.
Nxe4 {[%clk 01:29:52]} {[%emt 00:00:07]} Bf8 {[%clk 01:30:14]} {[%emt
00:00:08]} 12. Qc2 {[%clk 01:27:10]} {[%emt 00:03:14]} e5 {[%clk 01:24:54]}
{[%emt 00:05:49]} 13. d5 {[%clk 01:24:42]} {[%emt 00:02:58]} cxd5 {[%clk
01:24:05]} {[%emt 00:01:19]} 14. cxd5 {[%clk 01:20:53]} {[%emt 00:04:19]} f5
{[%clk 01:23:18]} {[%emt 00:01:17]} 15. Nc3 {[%clk 01:17:00]} {[%emt 00:04:24]}
Nf6 {[%clk 01:18:59]} {[%emt 00:04:49]} 16. Rd1 {[%clk 01:13:41]} {[%emt
00:03:49]} Bd7 {[%clk 01:08:01]} {[%emt 00:11:28]} 17. Qb3 {[%clk 01:10:34]}
{[%emt 00:03:37]} Rb8 {[%clk 01:04:44]} {[%emt 00:03:46]} 18. h3 {[%clk
01:07:51]} Bd6 {[%clk 01:00:19]} {[%emt 00:08:08]} 19. Be3 {[%clk 01:03:17]}
Qa5 {[%clk 00:58:50]} {[%emt 00:07:03]} 20. Bg5 {[%clk 01:02:13]} b5 {[%clk
00:56:19]} {[%emt 00:04:37]} 21. a3 {[%clk 00:57:11]} Qb6 {[%clk 00:48:55]}
{[%emt 00:13:25]} 22. Be3 {[%clk 00:54:42]} Qb7 {[%clk 00:48:41]} {[%emt
00:03:42]} 23. Rac1 {[%clk 00:53:40]} a5 {[%clk 00:46:11]} {[%emt 00:04:33]} 24.
Ne2 {[%clk 00:51:16]} Rbc8 {[%clk 00:45:31]} {[%emt 00:04:02]} 25. Rc6 {[%clk
00:47:09]} a4 {[%clk 00:42:57]} {[%emt 00:07:42]} 26. Qa2 {[%clk 00:47:15]} f4
{[%clk 00:30:46]} {[%emt 00:13:05]} 27. Rxd6 {[%clk 00:43:51]} fxe3 {[%clk
00:30:53]} {[%emt 00:04:17]} 28. Rxf6 {[%clk 00:44:05]} Qa7 {[%clk 00:28:34]}
{[%emt 00:03:05]} 29. Rf3 {[%clk 00:37:09]} exf2+ {[%clk 00:28:55]} {[%emt
00:07:35]} 30. Kh2 {[%clk 00:35:59]} e4 {[%clk 00:27:14]} {[%emt 00:03:51]} 31.
Rc3 {[%clk 00:33:50]} Rxc3 {[%clk 00:26:26]} {[%emt 00:03:57]} 1-0

[Event "SS Manhem Chess Week 2019 Goteborg Open"]
[Site "Molnlycke kulturhus, Biblioteksgatan 2, Molnlycke, Sweden"]
[Date "2019.08.18"]
[Round "7.12"]
[White "Andersson, Lars"]
[Black "Petersson, Baldur Teodor"]
[Result "0-1"]
[TimeControl "15 minutes + 5 seconds per move from move one (Round 1 - 4) / 90 minutes + 30 seconds per move from move one (Round 5 - 8)"]
[BlackTitle "CM"]
[WhiteFideId "1706772"]
[BlackFideId "2309157"]
[WhiteElo "2003"]
[BlackElo "2255"]

1. e4 {[%clk 01:30:54]} {[%emt 00:00:05]} c5 {[%clk 01:30:49]} {[%emt
00:00:11]} 2. Nf3 {[%clk 01:31:20]} {[%emt 00:00:04]} e6 {[%clk 01:31:14]}
{[%emt 00:00:05]} 3. b4 {[%clk 01:31:47]} {[%emt 00:00:03]} cxb4 {[%clk
01:31:04]} {[%emt 00:00:40]} 4. a3 {[%clk 01:31:53]} {[%emt 00:00:25]} d5
{[%clk 01:28:19]} {[%emt 00:03:15]} 5. e5 {[%clk 01:32:16]} {[%emt 00:00:07]}
d4 {[%clk 01:24:45]} {[%emt 00:04:04]} 6. Bb2 {[%clk 01:23:31]} {[%emt
00:09:15]} Nc6 {[%clk 01:23:33]} {[%emt 00:01:43]} 7. Bb5 {[%clk 01:17:37]}
{[%emt 00:06:24]} Bd7 {[%clk 01:22:46]} {[%emt 00:01:16]} 8. Bxc6 {[%clk
01:04:32]} {[%emt 00:13:36]} Bxc6 {[%clk 01:19:16]} {[%emt 00:04:00]} 9. d3
{[%clk 00:50:11]} {[%emt 00:14:50]} bxa3 {[%clk 01:16:25]} {[%emt 00:03:22]} 10.
Nxa3 {[%clk 00:47:56]} {[%emt 00:02:45]} Bb4+ {[%clk 01:14:26]} {[%emt
00:02:28]} 11. Kf1 {[%clk 00:48:12]} {[%emt 00:00:14]} Bc5 {[%clk 01:13:45]}
{[%emt 00:01:11]} 12. Nc4 {[%clk 00:44:56]} {[%emt 00:03:46]} Nh6 {[%clk
01:04:24]} {[%emt 00:09:50]} 13. Nd6+ {[%clk 00:29:42]} {[%emt 00:15:44]} Bxd6
{[%clk 01:03:34]} {[%emt 00:01:21]} 14. exd6 {[%clk 00:30:07]} {[%emt
00:00:05]} O-O {[%clk 01:02:55]} {[%emt 00:01:08]} 15. Ba3 {[%clk 00:24:37]}
{[%emt 00:06:02]} Qf6 {[%clk 01:00:52]} {[%emt 00:02:31]} 16. Nd2 {[%clk
00:15:41]} {[%emt 00:09:26]} Nf5 {[%clk 00:59:51]} {[%emt 00:01:31]} 17. Nf3
{[%clk 00:07:18]} {[%emt 00:08:54]} e5 {[%clk 00:58:35]} {[%emt 00:01:46]} 18.
h4 {[%clk 00:04:37]} {[%emt 00:03:11]} Nxd6 {[%clk 00:56:41]} {[%emt 00:02:24]}
19. Ng5 {[%clk 00:03:32]} {[%emt 00:01:35]} Nf5 {[%clk 00:56:33]} {[%emt
00:00:39]} 20. Kg1 {[%clk 00:02:47]} {[%emt 00:01:15]} Rfe8 {[%clk 00:55:51]}
{[%emt 00:01:12]} 21. Ne4 {[%clk 00:02:01]} {[%emt 00:01:16]} Bxe4 {[%clk
00:56:13]} {[%emt 00:00:08]} 22. dxe4 {[%clk 00:02:30]} {[%emt 00:00:01]} Nd6
{[%clk 00:56:26]} {[%emt 00:00:16]} 23. Qe2 {[%clk 00:01:38]} {[%emt 00:01:23]}
Rec8 {[%clk 00:56:34]} {[%emt 00:00:22]} 24. Rb1 {[%clk 00:01:39]} {[%emt
00:00:29]} Rc7 {[%clk 00:55:32]} {[%emt 00:01:32]} 25. Rh3 {[%clk 00:01:49]}
{[%emt 00:00:20]} Rac8 {[%clk 00:55:39]} {[%emt 00:00:23]} 26. Bxd6 {[%clk
00:01:57]} {[%emt 00:00:22]} Rxc2 {[%clk 00:55:08]} {[%emt 00:01:01]} 0-1

[Event "SS Manhem Chess Week 2019 Goteborg Open"]
[Site "Molnlycke kulturhus, Biblioteksgatan 2, Molnlycke, Sweden"]
[Date "2019.08.18"]
[Round "7.13"]
[White "Arnelind, Mikael"]
[Black "Johansson, Roy"]
[Result "1-0"]
[TimeControl "15 minutes + 5 seconds per move from move one (Round 1 - 4) / 90 minutes + 30 seconds per move from move one (Round 5 - 8)"]
[WhiteFideId "1704290"]
[BlackFideId "1745972"]
[WhiteElo "2187"]
[BlackElo "1976"]

1. d4 {[%clk 01:30:54]} {[%emt 00:00:04]} f5 {[%clk 01:27:30]} {[%emt
00:03:33]} 2. Nc3 {[%clk 01:31:17]} {[%emt 00:00:06]} Nf6 {[%clk 01:27:53]}
{[%emt 00:00:08]} 3. Bg5 {[%clk 01:31:38]} {[%emt 00:00:09]} Ne4 {[%clk
01:27:35]} {[%emt 00:00:49]} 4. Nxe4 {[%clk 01:30:49]} {[%emt 00:01:19]} fxe4
{[%clk 01:27:57]} {[%emt 00:00:07]} 5. e3 {[%clk 01:30:09]} {[%emt 00:01:10]}
c6 {[%clk 01:27:11]} {[%emt 00:01:16]} 6. c3 {[%clk 01:19:32]} {[%emt
00:11:06]} g6 {[%clk 01:26:01]} {[%emt 00:01:41]} 7. h4 {[%clk 01:18:00]}
{[%emt 00:02:02]} h6 {[%clk 01:25:04]} {[%emt 00:01:27]} 8. Bf4 {[%clk
01:18:08]} {[%emt 00:00:22]} d6 {[%clk 01:24:35]} {[%emt 00:00:59]} 9. f3
{[%clk 01:09:32]} {[%emt 00:09:06]} exf3 {[%clk 01:22:24]} {[%emt 00:02:41]} 10.
Nxf3 {[%clk 01:07:36]} {[%emt 00:02:26]} Be6 {[%clk 01:21:53]} {[%emt
00:01:02]} 11. Bd3 {[%clk 01:05:50]} {[%emt 00:02:16]} Bf7 {[%clk 01:20:37]}
{[%emt 00:01:46]} 12. Qc2 {[%clk 01:05:05]} {[%emt 00:01:15]} Rg8 {[%clk
01:20:47]} {[%emt 00:00:20]} 13. O-O-O {[%clk 00:55:25]} {[%emt 00:10:10]} Qa5
{[%clk 01:18:27]} {[%emt 00:02:50]} 14. b3 {[%clk 00:55:06]} {[%emt 00:00:50]}
Nd7 {[%clk 01:17:12]} {[%emt 00:01:44]} 15. Nd2 {[%clk 00:53:27]} {[%emt
00:02:09]} Nf6 {[%clk 01:15:58]} {[%emt 00:01:42]} 16. Nc4 {[%clk 00:51:16]}
{[%emt 00:02:44]} Qc7 {[%clk 01:14:04]} {[%emt 00:02:24]} 17. e4 {[%emt
00:03:56]} O-O-O {[%clk 01:09:27]} {[%emt 00:04:19]} 18. Rhf1 {[%clk 00:47:34]}
{[%emt 00:01:33]} g5 {[%clk 01:06:10]} {[%emt 00:03:47]} 19. hxg5 {[%emt
00:01:00]} hxg5 {[%emt 00:00:26]} 20. Bxd6 {[%clk 00:42:17]} {[%emt 00:05:12]}
exd6 {[%clk 01:05:03]} {[%emt 00:01:46]} 21. Rxf6 {[%clk 00:42:35]} {[%emt
00:00:11]} Bg7 {[%clk 01:01:20]} {[%emt 00:04:14]} 22. Rf2 {[%clk 00:40:57]}
{[%emt 00:02:08]} g4 {[%clk 01:00:08]} {[%emt 00:02:52]} 23. Rdf1 {[%emt
00:01:48]} Be6 24. Kb1 {[%clk 00:38:04]} {[%emt 00:01:25]} d5 {[%clk 00:58:25]}
{[%emt 00:02:13]} 25. exd5 {[%clk 00:36:43]} {[%emt 00:01:51]} Rxd5 {[%clk
00:56:28]} {[%emt 00:02:26]} 26. Bf5 {[%clk 00:35:43]} {[%emt 00:01:30]} Bxf5
{[%clk 00:56:07]} {[%emt 00:00:51]} 27. Rxf5 {[%clk 00:36:10]} {[%emt
00:00:03]} Rxf5 {[%clk 00:53:57]} {[%emt 00:02:41]} 28. Qxf5+ {[%clk 00:36:12]}
{[%emt 00:00:27]} Qd7 {[%clk 00:53:31]} {[%emt 00:00:56]} 29. Nd6+ {[%clk
00:33:14]} {[%emt 00:03:28]} Kd8 {[%clk 00:53:16]} {[%emt 00:00:46]} 30. Qxd7+
{[%clk 00:33:30]} {[%emt 00:00:14]} Kxd7 {[%clk 00:53:38]} {[%emt 00:00:08]} 31.
Nxb7 {[%clk 00:33:53]} {[%emt 00:00:07]} 1-0